lending/lending_fUSD_20260110
["ID","MTS","AMOUNT","RATE_DAILY","PERIOD"]
[401269811,1768086643635,-1000.0,0.000232,2]
[401269813,1768086643645,-1791.46539257,0.000232,2]
[401269815,1768086643654,-1000.0,0.00023212,2]
[401269817,1768086643663,-542.92,0.00023217,2]
[401269819,1768086643673,-1000.0,0.00023218,2]
[401269821,1768086643683,-1000.0,0.0002322,2]
[401269823,1768086643692,-1000.0,0.0002323,2]
[401269825,1768086643702,-1176.0,0.00023233,2]
[401269828,1768086643715,-1000.0,0.00023234,2]
[401269830,1768086643724,-180.17,0.00023245,2]
[401269832,1768086643734,-1000.0,0.00023261,2]
[401269834,1768086643743,-834.0,0.00023274,3]
[401269835,1768086643752,-1000.0,0.00023275,2]
[401269837,1768086643761,-500.0,0.00023281,2]
[401269839,1768086643771,-1176.0,0.00023287,2]
[401269841,1768086643781,-1000.0,0.00023288,2]
[401269843,1768086643790,-1000.0,0.0002329,2]
[401269846,1768086643800,-1000.0,0.00023292,2]
[401269848,1768086643810,-396.0,0.00023297,2]
[401269849,1768086643820,-1000.0,0.00023321,2]
[401269851,1768086643830,-1000.0,0.00023324,2]
[401269853,1768086643840,-150.0,0.00023325,2]
[401269856,1768086643850,-834.0,0.00023342,3]
[401269857,1768086643859,-1199.75099502,0.00023342,2]
[401269860,1768086643869,-1000.0,0.00023349,2]
[401269861,1768086643879,-1000.0,0.00023355,2]
[401269863,1768086643888,-1000.0,0.0002337,2]
[401269865,1768086643898,-1004.42526434,0.0002338,2]
[401269867,1768086643909,-1000.0,0.00023381,2]
[401269868,1768086643919,-1000.0,0.00023386,2]
[401269869,1768086643928,-1000.0,0.00023388,2]
[401269870,1768086643937,-1000.0,0.00023392,2]
[401269871,1768086643947,-1000.0,0.00023402,2]
[401269872,1768086643956,-834.0,0.0002341,3]
[401269873,1768086643966,-834.0,0.0002341,3]
[401269874,1768086643976,-1000.0,0.00023417,2]
[401269875,1768086643985,-1189.9,0.00023417,2]
[401269876,1768086643996,-168.0,0.00023432,2]
[401269878,1768086644005,-458.77495,0.00023438,2]
[401269879,1768086644014,-1000.0,0.00023441,2]
[401269881,1768086644024,-1000.0,0.00023445,2]
[401269884,1768086644034,-1000.0,0.00023451,2]
[401269885,1768086644043,-1000.0,0.00023452,2]
[401269888,1768086644053,-162.0,0.0002346,3]
[401269889,1768086644062,-163.0,0.0002346,3]
[401269891,1768086644072,-500.0,0.00023462,2]
[401269893,1768086644081,-1000.0,0.00023478,2]
[401269895,1768086644091,-1000.0,0.00023488,2]
[401269897,1768086644101,-396.0,0.00023494,2]
[401269899,1768086644111,-1000.0,0.00023496,2]
[401269901,1768086644122,-200.0,0.000235,2]
[401269904,1768086644132,-1000.0,0.00023507,2]
[401269906,1768086644142,-162.0,0.00023526,3]
[401269908,1768086644152,-834.0,0.0002353,3]
[401269910,1768086644162,-1000.0,0.00023532,2]
[401269912,1768086644172,-1000.0,0.00023535,2]
[401269914,1768086644182,-1000.0,0.00023538,2]
[401269916,1768086644191,-168.0,0.00023538,2]
[401269918,1768086644201,-1000.0,0.00023541,2]
[401269920,1768086644211,-1000.0,0.00023562,2]
[401269922,1768086644220,-1000.0,0.00023564,2]
[401269924,1768086644229,-150.0,0.00023573,2]
[401269926,1768086644239,-150.0,0.00023573,2]
[401269928,1768086644248,-150.0,0.00023573,2]
[401269930,1768086644258,-150.0,0.00023573,2]
[401269932,1768086644272,-150.0,0.00023573,2]
[401269934,1768086644287,-150.0,0.00023573,2]
[401269936,1768086644301,-150.0,0.00023573,2]
[401269938,1768086644310,-150.0,0.00023573,2]
[401269940,1768086644320,-150.0,0.00023573,2]
[401269942,1768086644329,-150.0,0.00023573,2]
[401269943,1768086644338,-150.0,0.00023573,2]
[401269945,1768086644348,-150.0,0.00023573,2]
[401269948,1768086644358,-150.0,0.00023573,2]
[401269950,1768086644369,-150.0,0.00023573,2]
[401269951,1768086644378,-150.0,0.00023573,2]
[401269953,1768086644387,-150.0,0.00023573,2]
[401269955,1768086644396,-834.0,0.0002358,3]
[401269957,1768086644405,-168.0,0.00023582,2]
[401269959,1768086644416,-1000.0,0.00023586,2]
[401269962,1768086644426,-1000.0,0.00023602,2]
[401269963,1768086644435,-1000.0,0.00023603,2]
[401269965,1768086644444,-1000.0,0.00023623,2]
[401269967,1768086644454,-1000.0,0.00023628,2]
[401269969,1768086644464,-1000.0,0.00023641,2]
[401269971,1768086644473,-834.0,0.00023662,3]
[401269973,1768086644483,-500.0,0.00023683,2]
[401269976,1768086644493,-1000.0,0.00023696,2]
[401269978,1768086644504,-1000.0,0.00023697,2]
[401269980,1768086644514,-396.0,0.00023698,2]
[401269982,1768086644523,-1000.0,0.00023707,2]
[401269983,1768086644532,-1000.0,0.00023709,2]
[401269986,1768086644543,-1000.0,0.00023715,2]
[401269987,1768086644552,-1000.0,0.00023719,2]
[401269989,1768086644561,-1000.0,0.00023725,2]
[401269992,1768086644571,-150.0,0.00023727,4]
[401269993,1768086644580,-162.0,0.0002373,3]
[401269996,1768086644590,-150.0,0.00023745,2]
[401269997,1768086644599,-168.0,0.00023751,2]
[401269999,1768086644608,-162.0,0.00023778,3]
[401270002,1768086644618,-1000.0,0.00023779,2]
[401270003,1768086644628,-1000.0,0.0002378,2]
[401270005,1768086644637,-9475.6,0.0002378,2]
[401270008,1768086644647,-150.0,0.00023789,2]
[401270010,1768086644657,-1000.0,0.00023797,2]
[401270012,1768086644667,-500.0,0.00023799,2]
[401270013,1768086644676,-649.16,0.00023799,2]
[401270016,1768086644686,-648.66,0.00023799,2]
[401270018,1768086644700,-4000.0,0.000238,2]
[401270020,1768086644709,-166.66,0.0002381,2]
[401270022,1768086644718,-168.0,0.00023812,2]
[401270023,1768086644727,-231.82683934,0.00023816,2]
[401270026,1768086644736,-1000.0,0.00023819,2]
[401270027,1768086644747,-1000.0,0.00023836,2]
[401270030,1768086644756,-1000.0,0.00023845,2]
[401270032,1768086644766,-1000.0,0.00023871,2]
[401270034,1768086644776,-1000.0,0.00023878,2]
[401270036,1768086644786,-150.0,0.0002388,2]
[401270038,1768086644796,-1000.0,0.0002388,2]
[401270039,1768086644805,-150.0,0.00023881,4]
[401270042,1768086644815,-150.0,0.00023898,2]
[401270044,1768086644825,-834.0,0.000239,3]
[401270046,1768086644835,-989.5,0.00023901,2]
[401270048,1768086644844,-150.0,0.00023904,2]
[401270049,1768086644854,-150.0,0.00023922,2]
[401270051,1768086644863,-1000.0,0.00023936,2]
[401270054,1768086644873,-1000.0,0.0002394,2]
[401270056,1768086644882,-396.0,0.00023962,2]
[401270057,1768086644892,-1000.0,0.00023984,2]
[401270059,1768086644901,-1000.0,0.00023986,2]
[401270061,1768086644910,-1000.0,0.00023991,2]
[401270063,1768086644919,-150.0,0.00023992,2]
[401270065,1768086644928,-1000.0,0.00023999,2]
[401270066,1768086644937,-16673.09034768,0.00024,2]
[401270067,1768086644946,-1019.92500499,0.00024,2]
[401270068,1768086644955,-10347.30535756,0.00024,14]
[401270069,1768086644965,-3600.0,0.00024,2]
[401270070,1768086644975,-1233.45193161,0.00024,2]
[401270071,1768086644984,-2000.0,0.00024,2]
[401270073,1768086644994,-1000.0,0.00024,2]
[401270074,1768086645003,-1000.0,0.00024,2]
[401270075,1768086645013,-1000.0,0.00024002,2]
[401270076,1768086645022,-1000.0,0.00024008,2]
[401270078,1768086645031,-1000.0,0.0002403,2]
[401270080,1768086645041,-1010.5,0.00024031,2]
[401270081,1768086645050,-731.3243139,0.00024031,2]
[401270082,1768086645059,-150.0,0.00024035,4]
[401270083,1768086645069,-1000.0,0.00024053,2]
[401270084,1768086645078,-776.97,0.00024054,2]
[401270085,1768086645088,-150.0,0.00024061,2]
[401270086,1768086645102,-1000.0,0.00024067,2]
[401270087,1768086645112,-150.0,0.00024067,2]
[401270088,1768086645122,-396.0,0.00024076,2]
[401270089,1768086645131,-396.0,0.00024082,2]
[401270090,1768086645140,-168.0,0.00024095,2]
[401270091,1768086645150,-1000.0,0.00024096,2]
[401270092,1768086645160,-396.0,0.00024098,2]
[401270093,1768086645170,-1189.9,0.00024108,2]
[401270094,1768086645179,-1000.0,0.0002411,2]
[401270095,1768086645190,-1000.0,0.00024118,2]
[401270096,1768086645201,-1000.0,0.00024134,2]
[401270097,1768086645211,-150.0,0.00024158,2]
[401270098,1768086645222,-536.6635,0.0002416,2]
[401270099,1768086645233,-536.66351,0.0002416,2]
[401270100,1768086645243,-536.6635,0.0002416,2]
[401270101,1768086645256,-536.6635,0.0002416,2]
[401270102,1768086645267,-536.66351,0.0002416,2]
[401270103,1768086645277,-536.66351,0.0002416,2]
[401270104,1768086645291,-150.0,0.00024169,2]
[401270105,1768086645300,-150.0,0.00024172,2]
[401270106,1768086645309,-1000.0,0.00024185,2]
[401270107,1768086645318,-1000.0,0.00024187,2]
[401270108,1768086645328,-150.0,0.00024189,4]
[401270109,1768086645339,-1000.0,0.0002419,2]
[401270110,1768086645348,-150.0,0.00024194,2]
[401270111,1768086645359,-421.39470484,0.0002421,2]
[401270112,1768086645368,-3691.35751438,0.0002421,2]
[401270113,1768086645378,-150.0,0.0002421,2]
[401270114,1768086645388,-834.0,0.0002422,3]
[401270115,1768086645397,-150.0,0.00024227,4]
[401270116,1768086645407,-150.0,0.00024227,4]
[401270117,1768086645417,-1000.0,0.00024228,2]
[401270118,1768086645426,-1000.0,0.00024237,2]
[401270119,1768086645436,-1000.0,0.0002424,2]
[401270120,1768086645446,-168.0,0.00024252,2]
[401270121,1768086645455,-1000.0,0.00024261,2]
[401270122,1768086645465,-150.0,0.00024264,2]
[401270123,1768086645475,-166.04276169,0.00024265,2]
[401270124,1768086645484,-1000.0,0.00024269,2]
[401270125,1768086645495,-1000.0,0.00024273,2]
[401270126,1768086645507,-1000.0,0.00024276,2]
[401270127,1768086645517,-1000.0,0.00024282,2]
[401270128,1768086645528,-1000.0,0.00024285,2]
[401270129,1768086645538,-1000.0,0.00024296,2]
[401270130,1768086645549,-150.0,0.000243,2]
[401270131,1768086645559,-8706.0395845,0.00024304,2]
[401270132,1768086645570,-1000.0,0.00024306,2]
[401270133,1768086645580,-1000.0,0.00024312,2]
[401270134,1768086645589,-1000.0,0.00024317,2]
[401270135,1768086645599,-150.0,0.00024322,2]
[401270136,1768086645609,-1000.0,0.00024327,2]
[401270137,1768086645620,-150.0,0.0002433,2]
[401270138,1768086645631,-17355.26409565,0.00024331,2]
[401270139,1768086645642,-151.0,0.00024332,2]
[401270140,1768086645652,-151.0,0.00024332,2]
[401270141,1768086645662,-163.187771,0.00024332,2]
[401270142,1768086645678,-151.0,0.00024332,2]
[401270143,1768086645688,-273.791817,0.00024332,2]
[401270144,1768086645698,-273.791817,0.00024332,2]
[401270145,1768086645707,-273.791817,0.00024332,2]
[401270146,1768086645717,-273.791817,0.00024332,2]
[401270147,1768086645727,-151.0,0.00024332,2]
[401270148,1768086645737,-207.29058,0.00024332,2]
[401270149,1768086645748,-464.448742,0.00024332,2]
[401270150,1768086645758,-464.448742,0.00024332,2]
[401270152,1768086645769,-464.448742,0.00024332,2]
[401270154,1768086645779,-464.448742,0.00024332,2]
[401270156,1768086645789,-151.0,0.00024332,2]
[401270157,1768086645799,-223.439387,0.00024332,2]
[401270158,1768086645809,-151.0,0.00024332,2]
[401270159,1768086645818,-151.0,0.00024332,2]
[401270160,1768086645828,-150.0,0.00024343,4]
[401270161,1768086645838,-150.0,0.00024346,2]
[401270162,1768086645848,-221.51285843,0.00024354,2]
[401270163,1768086645858,-150.0,0.00024356,2]
[401270164,1768086645868,-1000.0,0.0002437,2]
[401270165,1768086645877,-500.0,0.0002437,2]
[401270166,1768086645887,-1000.0,0.00024378,2]
[401270167,1768086645896,-1000.0,0.00024383,2]
[401270168,1768086645906,-1000.0,0.00024384,2]
[401270169,1768086645915,-1000.0,0.00024397,2]
[401270170,1768086645925,-501.0,0.00024397,2]
[401270171,1768086645934,-1000.0,0.00024398,2]
[401270172,1768086645944,-500.0,0.00024399,2]
[401270173,1768086645954,-640.29,0.00024399,2]
[401270174,1768086645963,-500.0,0.00024399,2]
[401270175,1768086645973,-649.16,0.00024399,2]
[401270176,1768086645982,-648.66,0.00024399,2]
[401270177,1768086645992,-150.0,0.00024399,2]
[401270178,1768086646001,-16306.56840151,0.000244,2]
[401270179,1768086646019,-24470.70780182,0.000244,2]
[401270180,1768086646031,-16962.51893402,0.000244,2]
[401270181,1768086646046,-15669.47059671,0.000244,2]
[401270182,1768086646058,-324.98920754,0.000244,2]
[401270183,1768086646070,-865.07238644,0.000244,2]
[401270184,1768086646090,-2695.82898383,0.000244,2]
[401270185,1768086646105,-1842.82150411,0.000244,2]
[401270186,1768086646117,-564.489387,0.000244,2]
[401270187,1768086646794,-566.0,0.00019506,2]
[401270188,1768086646804,-566.0,0.00022506,2]
[401270189,1768086646815,-151.0,0.00022549,2]
[401270190,1768086646825,-15.51448641,0.00022549,2]
[401270191,1768086646836,-179.92301359,0.00022549,2]
[401270192,1768086646847,-151.0,0.00022549,2]
[401270193,1768086646857,-151.0,0.00022549,2]
[401270194,1768086646867,-173.21291938,0.00024332,2]
[401270195,1768086646877,-195.4375,0.00024332,2]
[401270196,1768086646886,-151.0,0.00024332,2]
[401270197,1768086646896,-151.0,0.00024332,2]
[401270198,1768086646905,-1135.82673345,0.000244,2]
[401270199,1768086646916,-359.07414442,0.000244,2]
[401270200,1768086646927,-31135.95805416,0.000244,2]
[401270201,1768086646951,-195.4375,0.00022549,2]
[401270202,1768086646961,-2331.06077,0.000244,2]
[401270203,1768086646973,-821.65769891,0.000244,2]
[401270204,1768086647136,-151.0,0.00015485,2]
[401270205,1768086647146,-151.0,0.00015485,2]
[401270206,1768086647156,-160.78778635,0.00022549,2]
[401270207,1768086647167,-1.03680765,0.00022549,2]
[401270208,1768086647176,-195.4375,0.00022549,2]
[401270209,1768086647186,-195.4375,0.00024332,2]
[401270210,1768086647195,-192.35469234,0.00024332,2]
[401270211,1768086647509,-1.7e-07,0.00024332,2]
[401270212,1768086647757,-746.92492681,0.00022449,2]
[401270213,1768086647774,-6554.0,0.00019506,2]
[401270214,1768086647785,-516.21427281,0.00022449,2]
[401270215,1768086647795,-195.4375,0.00022549,2]
[401270216,1768086647805,-3.08280749,0.00024332,2]
[401270217,1768086647815,-195.4375,0.00024332,2]
[401270218,1768086647825,-48291.65539608,0.000244,2]
[401270219,1768086647835,-6231.37,0.000244,7]
[401270220,1768086647845,-150.0,0.000244,2]
[401270221,1768086647854,-297.179201,0.000244,2]
[401270222,1768086647864,-297.179201,0.000244,2]
[401270223,1768086647873,-297.179201,0.000244,2]
[401270224,1768086647883,-297.179201,0.000244,2]
[401270225,1768086647894,-254.728678,0.000244,2]
[401270226,1768086647904,-156.748249,0.000244,2]
[401270227,1768086647918,-151.0,0.000244,2]
[401270228,1768086647928,-241.80294846,0.000244,2]
[401270229,1768086647938,-258.357273,0.000244,2]
[401270230,1768086647947,-258.357273,0.000244,2]
[401270231,1768086647956,-258.357273,0.000244,2]
[401270232,1768086647966,-258.357273,0.000244,2]
[401270233,1768086647976,-151.0,0.000244,2]
[401270234,1768086647986,-151.0,0.000244,2]
[401270235,1768086647995,-151.0,0.000244,2]
[401270236,1768086648004,-769.986866,0.000244,2]
[401270237,1768086648015,-769.986866,0.000244,2]
[401270238,1768086648024,-769.986866,0.000244,2]
[401270239,1768086648034,-769.986866,0.000244,2]
[401270240,1768086648044,-151.0,0.000244,2]
[401270241,1768086648054,-151.0,0.000244,2]
[401270242,1768086648064,-151.0,0.000244,2]
[401270243,1768086648074,-1000.0,0.000244,2]
[401270244,1768086648084,-536.6635,0.000244,2]
[401270245,1768086648095,-536.6635,0.000244,2]
[401270246,1768086648113,-536.6635,0.000244,2]
[401270247,1768086648126,-536.66351,0.000244,2]
[401270248,1768086648136,-250.031061,0.000244,2]
[401270249,1768086648146,-537.0,0.00024407,3]
[401270250,1768086648156,-150.0,0.00024446,4]
[401270251,1768086648166,-150.0,0.00024446,4]
[401270252,1768086648177,-150.0,0.00024446,4]
[401270253,1768086648187,-396.0,0.00024487,2]
[401270254,1768086648198,-22419.16608996,0.00024489,2]
[401270255,1768086648208,-150.0,0.00024497,4]
[401270256,1768086648219,-166.66,0.00024505,2]
[401270257,1768086648230,-1263.13919957,0.0002452,2]
[401270258,1768086648239,-396.0,0.00024534,2]
[401270259,1768086648249,-1000.0,0.0002462,2]
[401270260,1768086648259,-396.0,0.00024642,2]
[401270261,1768086648269,-596.76671425,0.0002465,2]
[401270262,1768086648278,-150.0,0.00024651,4]
[401270263,1768086648290,-1000.0,0.00024658,2]
[401270264,1768086648301,-1560.32,0.00024658,2]
[401270265,1768086648311,-151.0,0.00024658,2]
[401270266,1768086648322,-151.0,0.00024658,2]
[401270267,1768086648334,-151.0,0.00024658,2]
[401270268,1768086648345,-151.0,0.00024658,2]
[401270269,1768086648355,-151.0,0.00024658,2]
[401270270,1768086648366,-151.0,0.00024658,2]
[401270271,1768086648375,-1000.0,0.00024658,2]
[401270272,1768086648385,-595.5,0.00024658,2]
[401270273,1768086648395,-639.9,0.00024658,6]
[401270274,1768086648404,-333.65128346,0.00024658,7]
[401270275,1768086648414,-151.0,0.00024658,7]
[401270276,1768086648424,-151.0,0.00024658,7]
[401270277,1768086648434,-151.0,0.00024658,7]
[401270278,1768086648444,-151.0,0.00024658,7]
[401270279,1768086648455,-180.070847,0.000247,4]
[401270280,1768086648465,-11379.81993378,0.000247,2]
[401270281,1768086648475,-196.49342565,0.000247,2]
[401270282,1768086648484,-224.30084607,0.000247,2]
[401270283,1768086648495,-358.34042396,0.000247,2]
[401270284,1768086648504,-19787.90808656,0.00024726,2]
[401270285,1768086648514,-396.0,0.0002474,2]
[401270286,1768086648524,-151.0,0.00024787,7]
[401270287,1768086648534,-151.0,0.00024787,7]
[401270288,1768086648543,-151.0,0.00024787,7]
[401270289,1768086648553,-151.0,0.00024787,7]
[401270290,1768086648563,-151.0,0.00024787,7]
[401270291,1768086648574,-1536.0477178,0.0002479,2]
[401270292,1768086648584,-327.49083589,0.00024799,2]
[401270293,1768086648594,-500.0,0.00024799,2]
[401270294,1768086648604,-500.0,0.00024799,2]
[401270295,1768086648614,-150.0,0.000248,2]
[401270296,1768086648623,-2856.31269088,0.000248,2]
[401270297,1768086648633,-297.179201,0.000248,7]
[401270298,1768086648643,-297.179201,0.000248,7]
[401270299,1768086648653,-297.179201,0.000248,7]
[401270300,1768086648664,-297.179201,0.000248,7]
[401270301,1768086648674,-151.0,0.000248,7]
[401270302,1768086648685,-258.357273,0.000248,7]
[401270303,1768086648695,-258.357273,0.000248,7]
[401270304,1768086648705,-258.357273,0.000248,7]
[401270305,1768086648715,-258.357273,0.000248,7]
[401270306,1768086648725,-151.0,0.000248,7]
[401270307,1768086648735,-151.0,0.000248,7]
[401270308,1768086648745,-151.0,0.000248,7]
[401270309,1768086648754,-194.645138,0.000248,7]
[401270310,1768086648764,-769.986866,0.000248,7]
[401270311,1768086648774,-769.986866,0.000248,7]
[401270312,1768086648784,-769.986866,0.000248,7]
[401270313,1768086648794,-769.986866,0.000248,7]
[401270314,1768086648804,-151.0,0.000248,7]
[401270315,1768086648813,-151.0,0.000248,7]
[401270316,1768086648823,-614363.05821,0.000248,3]
[401270317,1768086648833,-151.0,0.000248,7]
[401270318,1768086648843,-151.0,0.000248,7]
[401270319,1768086648852,-151.0,0.000248,7]
[401270320,1768086648862,-156.925618,0.000248,7]
[401270321,1768086648871,-273.791817,0.000248,7]
[401270322,1768086648881,-273.791817,0.000248,7]
[401270323,1768086648891,-273.791817,0.000248,7]
[401270324,1768086648901,-273.791817,0.000248,7]
[401270325,1768086648910,-151.0,0.000248,7]
[401270326,1768086648921,-464.448742,0.000248,7]
[401270327,1768086648931,-464.448742,0.000248,7]
[401270328,1768086648941,-464.448742,0.000248,7]
[401270329,1768086648951,-464.448742,0.000248,7]
[401270330,1768086648961,-151.0,0.000248,7]
[401270331,1768086648971,-151.0,0.000248,7]
[401270332,1768086648981,-151.0,0.000248,7]
[401270333,1768086648991,-195.4375,0.000248,2]
[401270334,1768086649000,-151.0,0.000248,7]
[401270335,1768086649010,-151.0,0.000248,7]
[401270336,1768086649019,-195.4375,0.000248,2]
[401270337,1768086649028,-195.4375,0.000248,2]
[401270338,1768086649038,-195.4375,0.000248,2]
[401270339,1768086649047,-150.0,0.00024805,4]
[401270340,1768086649056,-358.38,0.00024816,2]
[401270341,1768086649066,-156.55,0.00024816,2]
[401270342,1768086649075,-325.87,0.00024816,2]
[401270343,1768086649085,-179.19,0.00024816,2]
[401270344,1768086649094,-304.18,0.00024816,2]
[401270345,1768086649103,-556.55,0.00024816,2]
[401270346,1768086649113,-179.19,0.00024816,2]
[401270347,1768086649122,-171.45,0.00024816,2]
[401270348,1768086649134,-171.45,0.00024816,2]
[401270349,1768086649144,-933.94,0.00024816,2]
[401270350,1768086649155,-466.97,0.00024816,2]
[401270351,1768086649165,-171.45,0.00024816,2]
[401270352,1768086649175,-171.45,0.00024816,2]
[401270353,1768086649184,-171.45,0.00024816,2]
[401270354,1768086649194,-466.97,0.00024816,2]
[401270355,1768086649203,-171.45,0.00024816,2]
[401270356,1768086649213,-998.0,0.00024818,2]
[401270357,1768086649222,-304.40440506,0.00024831,2]
[401270358,1768086649232,-150.0,0.00024882,4]
[401270359,1768086649242,-150.0,0.00024882,4]
[401270360,1768086649251,-168.0,0.00024891,2]
[401270361,1768086649260,-500.0,0.00024899,2]
[401270362,1768086649270,-500.0,0.00024899,2]
[401270363,1768086649279,-500.0,0.00024899,2]
[401270364,1768086649289,-151.0,0.000249,7]
[401270365,1768086649300,-10000.0,0.000249,2]
[401270366,1768086649310,-330066.97720371,0.000249,3]
[401270367,1768086649597,-695.73536997,0.00021979,2]
[401270368,1768086649607,-658.84102003,0.00022506,2]
[401270369,1768086649621,-5000.0,0.00022506,2]
[401270370,1768086649635,-895.15897997,0.00022506,2]
[401270371,1768086649646,-276743.03319829,0.000249,3]
[401270372,1768086649655,-151.0,0.000249,7]
[401270373,1768086649665,-464.448742,0.000249,7]
[401270374,1768086649674,-464.448742,0.000249,7]
[401270375,1768086649683,-464.448742,0.000249,7]
[401270376,1768086649693,-464.448742,0.000249,7]
[401270377,1768086649704,-138.28515535,0.000249,7]
[401270378,1768086649716,-12.71484465,0.000249,7]
[401270379,1768086649727,-151.0,0.000249,7]
[401270380,1768086649736,-151.0,0.000249,7]
[401270381,1768086649746,-91.88452613,0.000249,7]
[401270382,1768086649762,-59.11547387,0.000249,7]
[401270383,1768086649773,-195.4375,0.000249,2]
[401270384,1768086649783,-151.0,0.000249,7]
[401270385,1768086649794,-195.4375,0.000249,2]
[401270386,1768086649804,-47.46552613,0.000249,2]
[401270387,1768086649818,-147.97197387,0.000249,2]
[401270388,1768086649828,-195.4375,0.000249,2]
[401270389,1768086649838,-396.0,0.00024927,2]
[401270390,1768086649848,-1000.0,0.00024932,2]
[401270391,1768086649858,-342.9,0.00024956,2]
[401270392,1768086649868,-466.97,0.00024956,2]
[401270393,1768086649877,-150.0,0.00024959,4]
[401270394,1768086649887,-501.0,0.00024965,2]
[401270395,1768086649896,-640.29,0.00024999,2]
[401270396,1768086649907,-500.0,0.00024999,2]
[401270397,1768086649916,-649.16,0.00024999,2]
[401270398,1768086649927,-648.66,0.00024999,2]
[401270399,1768086649937,-608.8534856,0.00025,2]
[401270400,1768086649946,-206.81025281,0.00025,2]
[401270401,1768086649957,-1778.72238968,0.00025,2]
[401270402,1768086649966,-390.58029022,0.00025,2]
[401270403,1768086649977,-360.0,0.00025,2]
[401270404,1768086649988,-170.2852417,0.00025,5]
[401270405,1768086649999,-5356.20387678,0.00025,3]
[401270406,1768086650009,-1365.11735552,0.00025,2]
[401270407,1768086650020,-1110.14220461,0.00025,2]
[401270408,1768086650031,-3034.36583957,0.00025,2]
[401270409,1768086650041,-1061.05880019,0.00025,2]
[401270410,1768086650050,-166.76622512,0.00025,2]
[401270411,1768086650059,-1260.47140902,0.00025,2]
[401270412,1768086650082,-151.0,0.00023799,2]
[401270413,1768086650092,-4130.87359996,0.00025,2]
[401270414,1768086683141,211.3479387,0.00027397,120]
[401270415,1768086732900,1399.130102,0.00014389,2]
[401270416,1768086758533,573.93093042,0.00014361,2]
[401270417,1768086777465,4483.83321801,0.00014361,2]
[401270418,1768086779203,3471.05281913,0.00014361,2]
[401270419,1768086800806,154.55122626,0.00014361,2]
[401270420,1768087050817,154.55122622,0.00014361,2]
[401270421,1768087055507,1162.09057996,0.00014428,2]
[401270422,1768087055537,363.37942004,0.00014428,2]
[401270424,1768087167484,3123.94753728,0.00014361,2]
[401270425,1768087169600,211.0,0.00014304,2]
[401270426,1768087170471,342.83348234,0.00027,120]
[401270427,1768087225540,2500.0,0.00014358,2]
[401270428,1768087268460,3590.8065,0.00014358,2]
[401270429,1768087288184,210.87654268,0.00014361,2]
[401270430,1768087288211,3824.57335352,0.00014361,2]
[401270431,1768087294363,1440.396,0.00014169,2]
[401270432,1768087301053,154.55122622,0.00014361,2]
[401270433,1768087525310,1026.77520155,0.000108,2]
[401270434,1768087530100,215.0,0.00014302,2]
[401270435,1768087536517,154.55122622,0.00014361,2]
[401270436,1768087537279,1662.88,0.00014428,2]
[401270437,1768087556469,1521.28299249,0.00014361,2]
[401270438,1768087556493,1290.26979108,0.00014361,2]
[401270440,1768087761659,154.55122622,0.00014361,2]